Workbook

Sheet Personal
A1: DATOS DEL PERSONAL | D1: INGRESAR DATOS | L1: www.archivoexcel.com
C2: www.archivoexcel.com
A3: N | B3: Apellidos y Nombres | C3: Fecha de Ingreso | D3: Faltas
A4: 1 | B4: ALVARADO, PEDRO | C4: 2014-12-20
A5: 2 | B5: TINOCO, EDVER | C5: 2014-12-20
A6: 3 | B6: BARRIOS, OSCAR | C6: 2015-06-20
A7: 4 | B7: CASTILLO, GABINO | C7: 2015-01-10
A8: 5 | B8: LEON, ROLANDO | C8: 2014-12-12
A9: 6 | B9: CHAHUA, HONORATO | C9: 2015-03-01 | D9: 5
A10: 7 | B10: CHOCCE, FELIX | C10: 2014-11-15
A11: 8 | B11: QUISPE, MAXIMO | C11: 2014-12-15
A12: 9 | B12: DESTAJERO | C12: 2014-11-15
A13: 10 | B13: DESTAJERO 1 | C13: 2015-05-14
A14: 11
A15: 12
A16: 13
A17: 14
A18: 15
A19: 16
A20: 17
A21: 18
A22: 19
A23: 20
A24: 21
A25: 22
A26: 23
A27: 24
A28: 25
A29: 26
A30: 27
A31: 28
A32: 29
A33: 30
A34: 31
A35: 32
A36: 33
A37: 34
A38: 35
A39: 36
A40: 37
A41: 38
A42: 39
A43: 40
A44: 41
A45: 42
A46: 43
A47: 44
A48: 45
A49: 46
A50: 47
A51: 48
A52: 49
A53: 50
A54: 51
A55: 52
A56: 53
A57: 54
A58: 55
A59: 56
A60: 57
A61: 58
A62: 59
A63: 60
A64: 61
A65: 62
A66: 63
A67: 64
A68: 65
A69: 66
A70: 67
A71: 68
A72: 69
A73: 70
A74: 71
A75: 72
A76: 73
A77: 74
A78: 75
A79: 76
A80: 77
A81: 78
A82: 79
A83: 80
A84: 81
A85: 82
A86: 83
A87: 84
A88: 85
A89: 86
A90: 87
A91: 88
A92: 89
A93: 90
A94: 91
A95: 92
A96: 93
A97: 94
A98: 95
A99: 96
A100: 97
A101: 98
A102: 99
A103: 100

Sheet Conceptos
Z1: Aportes

Sheet Remunera
A1: TIPO DE REMUNERACIÓN | E1: SELECCIONAR DATO | I1: INGRESAR DATOS | L1: www.archivoexcel.com
A2: N | B2: Apellidos y Nombres | C2: Sueldo | D2: 1 | F2: 2 | H2: 3 | J2: 4 | L2: 5 | N2: 6 | P2: Promedio
D3: Importe | E3: Días | F3: Importe | G3: Días | H3: Importe | I3: Días | J3: Importe | K3: Días | L3: Importe | M3: Días | N3: Importe | O3: Días
A4: 1 | B4: ALVARADO, PEDRO | C4: 2500 | P4: =IF(AND((D4+F4+H4+J4+L4+N4)>0,(E4+G4+I4+K4+M4+O4)>0),(D4+F4+H4+J4+L4+N4)/(E4+G4+I4+K4+M4+O4)*30,IF(C4>0,C4,0)) -> 2500
A5: 2 | B5: TINOCO, EDVER | C5: 3200 | P5: =IF(AND((D5+F5+H5+J5+L5+N5)>0,(E5+G5+I5+K5+M5+O5)>0),(D5+F5+H5+J5+L5+N5)/(E5+G5+I5+K5+M5+O5)*30,IF(C5>0,C5,0)) -> 3200
A6: 3 | B6: BARRIOS, OSCAR | C6: 1000 | P6: 1000
A7: 4 | B7: LEON, ROLANDO | C7: =(45+25)*30 -> 2100 | P7: 2100
A8: 5 | B8: CHAHUA, HONORATO | C8: 1500 | P8: 1500
A9: 6 | B9: CHOCCE, FELIX | C9: 2800 | P9: 2800
A10: 7 | B10: QUISPE, MAXIMO | C10: 1800 | P10: 1800
A11: 8 | B11: DESTAJERO | D11: 700 | E11: 30 | F11: 650 | G11: 30 | H11: 800 | I11: 30 | J11: 550 | K11: 30 | L11: 800 | M11: 30 | N11: 600 | O11: 30 | P11: 683.3333333
A12: 9 | B12: DESTAJERO 1 | L12: 1000 | M12: 30 | N12: 2500 | O12: 30 | P12: 1750
A13: 10 | P13: 0
A14: 11 | P14: 0
A15: 12 | P15: 0
A16: 13 | P16: 0
A17: 14 | P17: 0
A18: 15 | P18: 0
A19: 16 | P19: 0
A20: 17 | P20: 0
A21: 18 | P21: 0
A22: 19 | P22: 0
A23: 20 | P23: 0
A24: 21 | P24: 0
A25: 22 | P25: 0
A26: 23 | P26: 0
A27: 24 | P27: 0
A28: 25 | P28: 0
A29: 26 | P29: 0
A30: 27 | P30: 0
A31: 28 | P31: 0
A32: 29 | P32: 0
A33: 30 | P33: 0
A34: 31 | P34: 0
A35: 32 | P35: 0
A36: 33 | P36: 0
A37: 34 | P37: 0
A38: 35 | P38: 0
A39: 36 | P39: 0
A40: 37 | P40: 0
A41: 38 | P41: 0
A42: 39 | P42: 0
A43: 40 | P43: 0
A44: 41 | P44: 0
A45: 42 | P45: 0
A46: 43 | P46: 0
A47: 44 | P47: 0
A48: 45 | P48: 0
A49: 46 | P49: 0
A50: 47 | P50: 0
A51: 48 | P51: 0
A52: 49 | P52: 0
A53: 50 | P53: 0
A54: 51 | P54: 0
A55: 52 | P55: 0
A56: 53 | P56: 0
A57: 54 | P57: 0
A58: 55 | P58: 0
A59: 56 | P59: 0
A60: 57 | P60: 0
A61: 58 | P61: 0
A62: 59 | P62: 0
A63: 60 | P63: 0
A64: 61 | P64: 0
A65: 62 | P65: 0
A66: 63 | P66: 0
A67: 64 | P67: 0
A68: 65 | P68: 0
A69: 66 | P69: =IF(AND((D69+F69+H69+J69+L69+N69)>0,(E69+G69+I69+K69+M69+O69)>0),(D69+F69+H69+J69+L69+N69)/(E69+G69+I69+K69+M69+O69)*30,IF(C69>0,C69,0)) -> 0
A70: 67 | P70: 0
A71: 68 | P71: 0
A72: 69 | P72: 0
A73: 70 | P73: 0
A74: 71 | P74: 0
A75: 72 | P75: 0
A76: 73 | P76: 0
A77: 74 | P77: 0
A78: 75 | P78: 0
A79: 76 | P79: 0
A80: 77 | P80: 0
A81: 78 | P81: 0
A82: 79 | P82: 0
A83: 80 | P83: 0
A84: 81 | P84: 0
A85: 82 | P85: 0
A86: 83 | P86: 0
A87: 84 | P87: 0
A88: 85 | P88: 0
A89: 86 | P89: 0
A90: 87 | P90: 0
A91: 88 | P91: 0
A92: 89 | P92: 0
A93: 90 | P93: 0
A94: 91 | P94: 0
A95: 92 | P95: 0
A96: 93 | P96: 0
A97: 94 | P97: 0
A98: 95 | P98: 0
A99: 96 | P99: 0
A100: 97 | P100: 0
A101: 98 | P101: 0
A102: 99 | P102: 0
A103: 100 | P103: 0
P104: 0

Sheet Otros
A1: OTROS TIPOS DE INGRESOS | F1: SELECCIONAR DATO
F2: INGRESAR DATOS
A3: N | B3: Apellidos y Nombres | C3: Asign. Famil | D3: Bonif. Ordina. | E3: Alimen. Princi. | F3: B | G3: C
A4: 1 | B4: ALVARADO, PEDRO | C4: 75 | D4: 800
A5: 2 | B5: TINOCO, EDVER | C5: 75 | E5: 250
A6: 3 | B6: BARRIOS, OSCAR | C6: 75
A7: 4 | B7: CASTILLO, GABINO | C7: 75
A8: 5 | B8: LEON, ROLANDO | C8: 75
A9: 6 | B9: CHAHUA, HONORATO | C9: 75
A10: 7 | B10: CHOCCE, FELIX | C10: 75
A11: 8 | B11: QUISPE, MAXIMO | C11: 75
A12: 9
A13: 10
A14: 11
A15: 12
A16: 13
A17: 14
A18: 15
A19: 16
A20: 17
A21: 18
A22: 19
A23: 20
A24: 21
A25: 22
A26: 23
A27: 24
A28: 25
A29: 26
A30: 27
A31: 28
A32: 29
A33: 30
A34: 31
A35: 32
A36: 33
A37: 34
A38: 35
A39: 36
A40: 37
A41: 38
A42: 39
A43: 40
A44: 41
A45: 42
A46: 43
A47: 44
A48: 45
A49: 46
A50: 47
A51: 48
A52: 49
A53: 50
A54: 51
A55: 52
A56: 53
A57: 54
A58: 55
A59: 56
A60: 57
A61: 58
A62: 59
A63: 60
A64: 61
A65: 62
A66: 63
A67: 64
A68: 65
A69: 66
A70: 67
A71: 68
A72: 69
A73: 70
A74: 71
A75: 72
A76: 73
A77: 74
A78: 75
A79: 76
A80: 77
A81: 78
A82: 79
A83: 80
A84: 81
A85: 82
A86: 83
A87: 84
A88: 85
A89: 86
A90: 87
A91: 88
A92: 89
A93: 90
A94: 91
A95: 92
A96: 93
A97: 94
A98: 95
A99: 96
A100: 97
A101: 98
A102: 99
A103: 100

Sheet HE
A1: DETALLE DE HORAS EXTRAS | E1: SELECCIONAR DATO | H1: INGRESAR DATOS
A2: N | B2: Apellidos y Nombres | C2: 1 | D2: 2 | E2: 3 | F2: 4 | G2: 5 | H2: 6 | I2: Promedio
C3: Importe | D3: Importe | E3: Importe | F3: Importe | G3: Importe | H3: Importe
A4: 1 | B4: CHOCCE, FELIX | C4: 158.78 | D4: 149 | E4: 139 | F4: 160.15 | G4: 158.56 | H4: 178.5 | I4: =IF((IF(C4>0,1,0)+IF(D4>0,1,0)+IF(E4>0,1,0)+IF(F4>0,1,0)+IF(G4>0,1,0)+IF(H4>0,1,0))>=3,SUM(C4:H4)/6,0) -> 157.3316667
A5: 2 | B5: QUISPE, MAXIMO | C5: 20 | D5: 18 | G5: 35 | I5: =IF((IF(C5>0,1,0)+IF(D5>0,1,0)+IF(E5>0,1,0)+IF(F5>0,1,0)+IF(G5>0,1,0)+IF(H5>0,1,0))>=3,SUM(C5:H5)/6,0) -> 12.16666667
A6: 3 | I6: 0
A7: 4 | I7: 0
A8: 5 | I8: 0
A9: 6 | I9: 0
A10: 7 | I10: 0
A11: 8 | I11: 0
A12: 9 | I12: 0
A13: 10 | I13: 0
A14: 11 | I14: 0
A15: 12 | I15: 0
A16: 13 | I16: 0
A17: 14 | I17: 0
A18: 15 | I18: 0
A19: 16 | I19: 0
A20: 17 | I20: 0
A21: 18 | I21: 0
A22: 19 | I22: 0
A23: 20 | I23: 0
A24: 21 | I24: 0
A25: 22 | I25: 0
A26: 23 | I26: 0
A27: 24 | I27: 0
A28: 25 | I28: 0
A29: 26 | I29: 0
A30: 27 | I30: 0
A31: 28 | I31: 0
A32: 29 | I32: 0
A33: 30 | I33: 0
A34: 31 | I34: 0
A35: 32 | I35: 0
A36: 33 | I36: 0
A37: 34 | I37: 0
A38: 35 | I38: 0
A39: 36 | I39: 0
A40: 37 | I40: 0
A41: 38 | I41: 0
A42: 39 | I42: 0
A43: 40 | I43: 0
A44: 41 | I44: 0
A45: 42 | I45: 0
A46: 43 | I46: 0
A47: 44 | I47: 0
A48: 45 | I48: 0
A49: 46 | I49: 0
A50: 47 | I50: 0
A51: 48 | I51: 0
A52: 49 | I52: 0
A53: 50 | I53: 0
A54: 51 | I54: 0
A55: 52 | I55: 0
A56: 53 | I56: 0
A57: 54 | I57: 0
A58: 55 | I58: 0
A59: 56 | I59: 0
A60: 57 | I60: 0
A61: 58 | I61: 0
A62: 59 | I62: 0
A63: 60 | I63: 0
A64: 61 | I64: 0
A65: 62 | I65: 0
A66: 63 | I66: 0
A67: 64 | I67: 0
A68: 65 | I68: 0
A69: 66 | I69: =IF((IF(C69>0,1,0)+IF(D69>0,1,0)+IF(E69>0,1,0)+IF(F69>0,1,0)+IF(G69>0,1,0)+IF(H69>0,1,0))>=3,SUM(C69:H69)/6,0) -> 0
A70: 67 | I70: 0
A71: 68 | I71: 0
A72: 69 | I72: 0
A73: 70 | I73: 0
A74: 71 | I74: 0
A75: 72 | I75: 0
A76: 73 | I76: 0
A77: 74 | I77: 0
A78: 75 | I78: 0
A79: 76 | I79: 0
A80: 77 | I80: 0
A81: 78 | I81: 0
A82: 79 | I82: 0
A83: 80 | I83: 0
A84: 81 | I84: 0
A85: 82 | I85: 0
A86: 83 | I86: 0
A87: 84 | I87: 0
A88: 85 | I88: 0
A89: 86 | I89: 0
A90: 87 | I90: 0
A91: 88 | I91: 0
A92: 89 | I92: 0
A93: 90 | I93: 0
A94: 91 | I94: 0
A95: 92 | I95: 0
A96: 93 | I96: 0
A97: 94 | I97: 0
A98: 95 | I98: 0
A99: 96 | I99: 0
A100: 97 | I100: 0
A101: 98 | I101: 0
A102: 99 | I102: 0
A103: 100 | I103: 0

Sheet Comi
A1: DETALLE DE COMISIONES | F1: SELECCIONAR DATO | J1: INGRESAR DATOS | L1: www.archivoexcel.com
A2: N | B2: Apellidos y Nombres | C2: 1 | E2: 2 | G2: 3 | I2: 4 | K2: 5 | M2: 6 | O2: Promedio
C3: Importe | D3: Días | E3: Importe | F3: Días | G3: Importe | H3: Días | I3: Importe | J3: Días | K3: Importe | L3: Días | M3: Importe | N3: Días
A4: 1 | B4: TINOCO, EDVER | C4: 850 | E4: 710 | G4: 560 | I4: 680 | K4: 790 | M4: 845 | O4: =IF(AND((C4+E4+G4+I4+K4+M4)>0,(D4+F4+H4+J4+L4+N4)>0),((C4+E4+G4+I4+K4+M4)/(D4+F4+H4+J4+L4+N4))*30,(C4+E4+G4+I4+K4+M4)/6) -> 739.1666667
A5: 2 | B5: CASTILLO, GABINO | C5: 450 | D5: 10 | E5: 930 | F5: 30 | G5: 1100 | H5: 30 | I5: 900 | J5: 30 | K5: 945 | L5: 30 | M5: 1150 | N5: 30 | O5: =IF(AND((C5+E5+G5+I5+K5+M5)>0,(D5+F5+H5+J5+L5+N5)>0),((C5+E5+G5+I5+K5+M5)/(D5+F5+H5+J5+L5+N5))*30,(C5+E5+G5+I5+K5+M5)/6) -> 1026.5625
A6: 3 | B6: QUISPE, MAXIMO | C6: 200 | K6: 220 | O6: 70
A7: 4 | O7: 0
A8: 5 | O8: 0
A9: 6 | O9: 0
A10: 7 | O10: 0
A11: 8 | O11: 0
A12: 9 | O12: 0
A13: 10 | O13: 0
A14: 11 | O14: 0
A15: 12 | O15: 0
A16: 13 | O16: 0
A17: 14 | O17: 0
A18: 15 | O18: 0
A19: 16 | O19: 0
A20: 17 | O20: 0
A21: 18 | O21: 0
A22: 19 | O22: 0
A23: 20 | O23: 0
A24: 21 | O24: 0
A25: 22 | O25: 0
A26: 23 | O26: 0
A27: 24 | O27: 0
A28: 25 | O28: 0
A29: 26 | O29: 0
A30: 27 | O30: 0
A31: 28 | O31: 0
A32: 29 | O32: 0
A33: 30 | O33: 0
A34: 31 | O34: 0
A35: 32 | O35: 0
A36: 33 | O36: 0
A37: 34 | O37: 0
A38: 35 | O38: 0
A39: 36 | O39: 0
A40: 37 | O40: 0
A41: 38 | O41: 0
A42: 39 | O42: 0
A43: 40 | O43: 0
A44: 41 | O44: 0
A45: 42 | O45: 0
A46: 43 | O46: 0
A47: 44 | O47: 0
A48: 45 | O48: 0
A49: 46 | O49: 0
A50: 47 | O50: 0
A51: 48 | O51: 0
A52: 49 | O52: 0
A53: 50 | O53: 0
A54: 51 | O54: 0
A55: 52 | O55: 0
A56: 53 | O56: 0
A57: 54 | O57: 0
A58: 55 | O58: 0
A59: 56 | O59: 0
A60: 57 | O60: 0
A61: 58 | O61: 0
A62: 59 | O62: 0
A63: 60 | O63: 0
A64: 61 | O64: 0
A65: 62 | O65: 0
A66: 63 | O66: 0
A67: 64 | O67: 0
A68: 65 | O68: 0
A69: 66 | O69: =IF(AND((C69+E69+G69+I69+K69+M69)>0,(D69+F69+H69+J69+L69+N69)>0),((C69+E69+G69+I69+K69+M69)/(D69+F69+H69+J69+L69+N69))*30,(C69+E69+G69+I69+K69+M69)/6) -> 0
A70: 67 | O70: 0
A71: 68 | O71: 0
A72: 69 | O72: 0
A73: 70 | O73: 0
A74: 71 | O74: 0
A75: 72 | O75: 0
A76: 73 | O76: 0
A77: 74 | O77: 0
A78: 75 | O78: 0
A79: 76 | O79: 0
A80: 77 | O80: 0
A81: 78 | O81: 0
A82: 79 | O82: 0
A83: 80 | O83: 0
A84: 81 | O84: 0
A85: 82 | O85: 0
A86: 83 | O86: 0
A87: 84 | O87: 0
A88: 85 | O88: 0
A89: 86 | O89: 0
A90: 87 | O90: 0
A91: 88 | O91: 0
A92: 89 | O92: 0
A93: 90 | O93: 0
A94: 91 | O94: 0
A95: 92 | O95: 0
A96: 93 | O96: 0
A97: 94 | O97: 0
A98: 95 | O98: 0
A99: 96 | O99: 0
A100: 97 | O100: 0
A101: 98 | O101: 0
A102: 99 | O102: 0
A103: 100 | O103: 0

Sheet Calculo
A1: DETALLE DEL CALCULO | D1: SELECCIONAR DATO | G1: www.archivoexcel.com | Q1: 2015-06-30
D2: INGRESAR DATOS | N2: Factor en S/. | Q2: =DATE(YEAR(Q1),MONTH(Q1)-5,1) -> 2015-01-01 | U2: Tiempo Computable | X2: Gratificación
A3: N | B3: Apellidos y Nombres | C3: Fecha de Ingreso | D3: Remunerac Computable | E3: Sueldo | F3: Asign. Famil | G3: H: E. | H3: Comisiones | I3: =Otros!D3 -> Bonif. Ordina. | J3: =Otros!E3 -> Alimen. Princi. | K3: =Otros!F3 -> B | L3: =Otros!G3 -> C | N3: x Mes | O3: x Día | Q3: Total Días | S3: Faltas | U3: Meses | V3: Días | X3: Gratificación | Y3: Bono Extra. Ley Nº 30334 | Z3: Total
A4: 1 | B4: ALVARADO, PEDRO | C4: =IF(ISERROR(VLOOKUP(B4,DATAPERSONAL,1,0))=FALSE,VLOOKUP(B4,DATAPERSONAL,2,0),"") -> 2014-12-20 | D4: =SUM(E4:L4) -> 3375 | E4: =IF(ISERROR(VLOOKUP(B4,DATASUELDO,1,0))=FALSE,VLOOKUP(B4,DATASUELDO,15,0),0) -> 2500 | F4: =IF(ISERROR(VLOOKUP(B4,DATAOTROS,1,0))=FALSE,VLOOKUP(B4,DATAOTROS,2,0),0) -> 75 | G4: =IF(ISERROR(VLOOKUP(B4,DATAHORASEXTRAS,1,0))=FALSE,VLOOKUP(B4,DATAHORASEXTRAS,8,0),0) -> 0 | H4: =IF(ISERROR(VLOOKUP(B4,DATACOMISIONES,1,0))=FALSE,VLOOKUP(B4,DATACOMISIONES,14,0),0) -> 0 | I4: =IF(ISERROR(VLOOKUP(B4,DATAOTROS,1,0))=FALSE,VLOOKUP(B4,DATAOTROS,3,0),0) -> 800 | J4: =IF(ISERROR(VLOOKUP(B4,DATAOTROS,1,0))=FALSE,VLOOKUP(B4,DATAOTROS,4,0),0) -> 0 | K4: =IF(ISERROR(VLOOKUP(B4,DATAOTROS,1,0))=FALSE,VLOOKUP(B4,DATAOTROS,5,0),0) -> 0 | L4: =IF(ISERROR(VLOOKUP(B4,DATAOTROS,1,0))=FALSE,VLOOKUP(B4,DATAOTROS,6,0),0) -> 0 | N4: =D4/6 -> 562.5 | O4: =N4/30 -> 18.75 | Q4: =IF(ISERROR(IF(AND(MONTH($Q$1)=6,C4>=$Q$2),DAYS360(C4,$Q$1,1)+1,IF(AND(MONTH($Q$1)=12,C4>=$Q$2),DAYS360(C4,$Q$1,1)+1,IF(AND(MONTH($Q$1)=6,C4<$Q$2),DAYS360($Q$2,$Q$1,1)+1,IF(AND(MONTH($Q$1)=12,C4<$Q$2),DAYS360($Q$2,$Q$1,1)+1,0)))))=TRUE,0,IF(AND(MONTH($Q$1)=6,C4>=$Q$2),DAYS360(C4,$Q$1,1)+1,IF(AND(MONTH($Q$1)=12,C4>=$Q$2),DAYS360(C4,$Q$1,1)+1,IF(AND(MONTH($Q$1)=6,C4<$Q$2),DAYS360($Q$2,$Q$1,1)+1,IF(AND(MONTH($Q$1)=12,C4<$Q$2),DAYS360($Q$2,$Q$1,1)+1,0))))) -> 180 | S4: =IF(ISERROR(VLOOKUP(B4,DATAPERSONAL,1,0))=FALSE,VLOOKUP(B4,DATAPERSONAL,3,0),0) -> 0 | U4: =INT((Q4-S4)/30) -> 6 | V4: =IF(S4>0,(Q4-S4)-(U4*30),0) -> 0 | X4: =(N4*U4)+(O4*V4) -> 3375 | Y4: =X4*0.09 -> 303.75 | Z4: =SUM(X4:Y4) -> 3678.75
A5: 2 | B5: TINOCO, EDVER | C5: 2014-12-20 | D5: 4264.166667 | E5: 3200 | F5: 75 | G5: 0 | H5: 739.1666667 | I5: 0 | J5: 250 | K5: 0 | L5: 0 | N5: =D5/6 -> 710.6944444 | O5: =N5/30 -> 23.68981481 | Q5: =IF(ISERROR(IF(AND(MONTH($Q$1)=6,C5>=$Q$2),DAYS360(C5,$Q$1,1)+1,IF(AND(MONTH($Q$1)=12,C5>=$Q$2),DAYS360(C5,$Q$1,1)+1,IF(AND(MONTH($Q$1)=6,C5<$Q$2),DAYS360($Q$2,$Q$1,1)+1,IF(AND(MONTH($Q$1)=12,C5<$Q$2),DAYS360($Q$2,$Q$1,1)+1,0)))))=TRUE,0,IF(AND(MONTH($Q$1)=6,C5>=$Q$2),DAYS360(C5,$Q$1,1)+1,IF(AND(MONTH($Q$1)=12,C5>=$Q$2),DAYS360(C5,$Q$1,1)+1,IF(AND(MONTH($Q$1)=6,C5<$Q$2),DAYS360($Q$2,$Q$1,1)+1,IF(AND(MONTH($Q$1)=12,C5<$Q$2),DAYS360($Q$2,$Q$1,1)+1,0))))) -> 180 | S5: 0 | U5: =INT((Q5-S5)/30) -> 6 | V5: =IF(S5>0,(Q5-S5)-(U5*30),0) -> 0 | X5: =(N5*U5)+(O5*V5) -> 4264.166667 | Y5: =X5*0.09 -> 383.775 | Z5: =SUM(X5:Y5) -> 4647.941667
A6: 3 | B6: BARRIOS, OSCAR | C6: 2015-06-20 | D6: 1075 | E6: 1000 | F6: 75 | G6: 0 | H6: 0 | I6: 0 | J6: 0 | K6: 0 | L6: 0 | N6: =D6/6 -> 179.1666667 | O6: 5.972222222 | Q6: 11 | S6: 0 | U6: =INT((Q6-S6)/30) -> 0 | V6: 0 | X6: =(N6*U6)+(O6*V6) -> 0 | Y6: =X6*0.09 -> 0 | Z6: =SUM(X6:Y6) -> 0
A7: 4 | B7: CASTILLO, GABINO | C7: 2015-01-10 | D7: 1101.5625 | E7: 0 | F7: 75 | G7: 0 | H7: 1026.5625 | I7: 0 | J7: 0 | K7: 0 | L7: 0 | N7: =D7/6 -> 183.59375 | O7: 6.119791667 | Q7: 171 | S7: 0 | U7: 5 | V7: 0 | X7: 917.96875 | Y7: 82.6171875 | Z7: 1000.585938
A8: 5 | B8: LEON, ROLANDO | C8: 2014-12-12 | D8: 2175 | E8: 2100 | F8: 75 | G8: 0 | H8: 0 | I8: 0 | J8: 0 | K8: 0 | L8: 0 | N8: =D8/6 -> 362.5 | O8: 12.08333333 | Q8: 180 | S8: 0 | U8: 6 | V8: 0 | X8: 2175 | Y8: 195.75 | Z8: 2370.75
A9: 6 | B9: CHAHUA, HONORATO | C9: 2015-03-01 | D9: 1575 | E9: 1500 | F9: 75 | G9: 0 | H9: 0 | I9: 0 | J9: 0 | K9: 0 | L9: 0 | N9: =D9/6 -> 262.5 | O9: 8.75 | Q9: 120 | S9: 5 | U9: 3 | V9: 25 | X9: 1006.25 | Y9: 90.5625 | Z9: 1096.8125
A10: 7 | B10: CHOCCE, FELIX | C10: 2014-11-15 | D10: =SUM(E10:L10) -> 3032.331667 | E10: 2800 | F10: 75 | G10: 157.3316667 | H10: 0 | I10: 0 | J10: 0 | K10: 0 | L10: 0 | N10: 505.3886111 | O10: 16.84628704 | Q10: 180 | S10: 0 | U10: 6 | V10: 0 | X10: 3032.331667 | Y10: 272.90985 | Z10: 3305.241517
A11: 8 | B11: QUISPE, MAXIMO | C11: 2014-12-15 | D11: 1957.166667 | E11: 1800 | F11: 75 | G11: 12.16666667 | H11: 70 | I11: 0 | J11: 0 | K11: 0 | L11: 0 | N11: 326.1944444 | O11: 10.87314815 | Q11: 180 | S11: 0 | U11: 6 | V11: 0 | X11: 1957.166667 | Y11: 176.145 | Z11: 2133.311667
A12: 9 | B12: DESTAJERO | C12: 2014-11-15 | D12: =SUM(E12:L12) -> 683.3333333 | E12: 683.3333333 | F12: 0 | G12: 0 | H12: 0 | I12: 0 | J12: 0 | K12: 0 | L12: 0 | N12: =D12/6 -> 113.8888889 | O12: 3.796296296 | Q12: =IF(ISERROR(IF(AND(MONTH($Q$1)=6,C12>=$Q$2),DAYS360(C12,$Q$1,1)+1,IF(AND(MONTH($Q$1)=12,C12>=$Q$2),DAYS360(C12,$Q$1,1)+1,IF(AND(MONTH($Q$1)=6,C12<$Q$2),DAYS360($Q$2,$Q$1,1)+1,IF(AND(MONTH($Q$1)=12,C12<$Q$2),DAYS360($Q$2,$Q$1,1)+1,0)))))=TRUE,0,IF(AND(MONTH($Q$1)=6,C12>=$Q$2),DAYS360(C12,$Q$1,1)+1,IF(AND(MONTH($Q$1)=12,C12>=$Q$2),DAYS360(C12,$Q$1,1)+1,IF(AND(MONTH($Q$1)=6,C12<$Q$2),DAYS360($Q$2,$Q$1,1)+1,IF(AND(MONTH($Q$1)=12,C12<$Q$2),DAYS360($Q$2,$Q$1,1)+1,0))))) -> 180 | S12: 0 | U12: =INT((Q12-S12)/30) -> 6 | V12: =IF(S12>0,(Q12-S12)-(U12*30),0) -> 0 | X12: =(N12*U12)+(O12*V12) -> 683.3333333 | Y12: 61.5 | Z12: =SUM(X12:Y12) -> 744.8333333
A13: 10 | B13: DESTAJERO 1 | C13: 2015-05-14 | D13: 1750 | E13: 1750 | F13: 0 | G13: 0 | H13: 0 | I13: 0 | J13: 0 | K13: 0 | L13: 0 | N13: 291.6666667 | O13: 9.722222222 | Q13: 47 | S13: 0 | U13: 1 | V13: 0 | X13: 291.6666667 | Y13: 26.25 | Z13: 317.9166667
A14: 11 | D14: 0 | E14: 0 | F14: 0 | G14: 0 | H14: 0 | I14: 0 | J14: 0 | K14: 0 | L14: 0 | N14: 0 | O14: 0 | Q14: 0 | S14: 0 | U14: 0 | V14: 0 | X14: 0 | Y14: 0 | Z14: 0
A15: 12 | D15: 0 | E15: 0 | F15: 0 | G15: 0 | H15: 0 | I15: 0 | J15: 0 | K15: 0 | L15: 0 | N15: 0 | O15: 0 | Q15: 0 | S15: 0 | U15: 0 | V15: 0 | X15: 0 | Y15: 0 | Z15: 0
A16: 13 | D16: 0 | E16: 0 | F16: 0 | G16: 0 | H16: 0 | I16: 0 | J16: 0 | K16: 0 | L16: 0 | N16: 0 | O16: 0 | Q16: 0 | S16: 0 | U16: 0 | V16: 0 | X16: 0 | Y16: 0 | Z16: 0
A17: 14 | D17: 0 | E17: 0 | F17: 0 | G17: 0 | H17: 0 | I17: 0 | J17: 0 | K17: 0 | L17: 0 | N17: 0 | O17: 0 | Q17: 0 | S17: 0 | U17: 0 | V17: 0 | X17: 0 | Y17: 0 | Z17: 0
A18: 15 | D18: 0 | E18: 0 | F18: 0 | G18: 0 | H18: 0 | I18: 0 | J18: 0 | K18: 0 | L18: 0 | N18: 0 | O18: 0 | Q18: 0 | S18: 0 | U18: 0 | V18: 0 | X18: 0 | Y18: 0 | Z18: 0
A19: 16 | D19: 0 | E19: 0 | F19: 0 | G19: 0 | H19: 0 | I19: 0 | J19: 0 | K19: 0 | L19: 0 | N19: 0 | O19: 0 | Q19: 0 | S19: 0 | U19: 0 | V19: 0 | X19: 0 | Y19: 0 | Z19: 0
A20: 17 | D20: 0 | E20: 0 | F20: 0 | G20: 0 | H20: 0 | I20: 0 | J20: 0 | K20: 0 | L20: 0 | N20: 0 | O20: 0 | Q20: 0 | S20: 0 | U20: 0 | V20: 0 | X20: 0 | Y20: 0 | Z20: 0
A21: 18 | D21: 0 | E21: 0 | F21: 0 | G21: 0 | H21: 0 | I21: 0 | J21: 0 | K21: 0 | L21: 0 | N21: 0 | O21: 0 | Q21: 0 | S21: 0 | U21: 0 | V21: 0 | X21: 0 | Y21: 0 | Z21: 0
A22: 19 | D22: 0 | E22: 0 | F22: 0 | G22: 0 | H22: 0 | I22: 0 | J22: 0 | K22: 0 | L22: 0 | N22: 0 | O22: 0 | Q22: 0 | S22: 0 | U22: 0 | V22: 0 | X22: 0 | Y22: 0 | Z22: 0
A23: 20 | D23: 0 | E23: 0 | F23: 0 | G23: 0 | H23: 0 | I23: 0 | J23: 0 | K23: 0 | L23: 0 | N23: 0 | O23: 0 | Q23: 0 | S23: 0 | U23: 0 | V23: 0 | X23: 0 | Y23: 0 | Z23: 0
A24: 21 | D24: 0 | E24: 0 | F24: 0 | G24: 0 | H24: 0 | I24: 0 | J24: 0 | K24: 0 | L24: 0 | N24: 0 | O24: 0 | Q24: 0 | S24: 0 | U24: 0 | V24: 0 | X24: 0 | Y24: 0 | Z24: 0
A25: 22 | D25: 0 | E25: 0 | F25: 0 | G25: 0 | H25: 0 | I25: 0 | J25: 0 | K25: 0 | L25: 0 | N25: 0 | O25: 0 | Q25: 0 | S25: 0 | U25: 0 | V25: 0 | X25: 0 | Y25: 0 | Z25: 0
A26: 23 | D26: 0 | E26: 0 | F26: 0 | G26: 0 | H26: 0 | I26: 0 | J26: 0 | K26: 0 | L26: 0 | N26: 0 | O26: 0 | Q26: 0 | S26: 0 | U26: 0 | V26: 0 | X26: 0 | Y26: 0 | Z26: 0
A27: 24 | D27: 0 | E27: 0 | F27: 0 | G27: 0 | H27: 0 | I27: 0 | J27: 0 | K27: 0 | L27: 0 | N27: 0 | O27: 0 | Q27: 0 | S27: 0 | U27: 0 | V27: 0 | X27: 0 | Y27: 0 | Z27: 0
A28: 25 | D28: 0 | E28: 0 | F28: 0 | G28: 0 | H28: 0 | I28: 0 | J28: 0 | K28: 0 | L28: 0 | N28: 0 | O28: 0 | Q28: 0 | S28: 0 | U28: 0 | V28: 0 | X28: 0 | Y28: 0 | Z28: 0
A29: 26 | D29: 0 | E29: 0 | F29: 0 | G29: 0 | H29: 0 | I29: 0 | J29: 0 | K29: 0 | L29: 0 | N29: 0 | O29: 0 | Q29: 0 | S29: 0 | U29: 0 | V29: 0 | X29: 0 | Y29: 0 | Z29: 0
A30: 27 | D30: 0 | E30: 0 | F30: 0 | G30: 0 | H30: 0 | I30: 0 | J30: 0 | K30: 0 | L30: 0 | N30: 0 | O30: 0 | Q30: 0 | S30: 0 | U30: 0 | V30: 0 | X30: 0 | Y30: 0 | Z30: 0
A31: 28 | D31: 0 | E31: 0 | F31: 0 | G31: 0 | H31: 0 | I31: 0 | J31: 0 | K31: 0 | L31: 0 | N31: 0 | O31: 0 | Q31: 0 | S31: 0 | U31: 0 | V31: 0 | X31: 0 | Y31: 0 | Z31: 0
A32: 29 | D32: 0 | E32: 0 | F32: 0 | G32: 0 | H32: 0 | I32: 0 | J32: 0 | K32: 0 | L32: 0 | N32: 0 | O32: 0 | Q32: 0 | S32: 0 | U32: 0 | V32: 0 | X32: 0 | Y32: 0 | Z32: 0
A33: 30 | D33: 0 | E33: 0 | F33: 0 | G33: 0 | H33: 0 | I33: 0 | J33: 0 | K33: 0 | L33: 0 | N33: 0 | O33: 0 | Q33: 0 | S33: 0 | U33: 0 | V33: 0 | X33: 0 | Y33: 0 | Z33: 0
A34: 31 | D34: 0 | E34: 0 | F34: 0 | G34: 0 | H34: 0 | I34: 0 | J34: 0 | K34: 0 | L34: 0 | N34: 0 | O34: 0 | Q34: 0 | S34: 0 | U34: 0 | V34: 0 | X34: 0 | Y34: 0 | Z34: 0
A35: 32 | D35: 0 | E35: 0 | F35: 0 | G35: 0 | H35: 0 | I35: 0 | J35: 0 | K35: 0 | L35: 0 | N35: 0 | O35: 0 | Q35: 0 | S35: 0 | U35: 0 | V35: 0 | X35: 0 | Y35: 0 | Z35: 0
A36: 33 | C36: =IF(ISERROR(VLOOKUP(B36,DATAPERSONAL,1,0))=FALSE,VLOOKUP(B36,DATAPERSONAL,2,0),"") ->  | D36: 0 | E36: =IF(ISERROR(VLOOKUP(B36,DATASUELDO,1,0))=FALSE,VLOOKUP(B36,DATASUELDO,15,0),0) -> 0 | F36: =IF(ISERROR(VLOOKUP(B36,DATAOTROS,1,0))=FALSE,VLOOKUP(B36,DATAOTROS,2,0),0) -> 0 | G36: =IF(ISERROR(VLOOKUP(B36,DATAHORASEXTRAS,1,0))=FALSE,VLOOKUP(B36,DATAHORASEXTRAS,8,0),0) -> 0 | H36: =IF(ISERROR(VLOOKUP(B36,DATACOMISIONES,1,0))=FALSE,VLOOKUP(B36,DATACOMISIONES,14,0),0) -> 0 | I36: =IF(ISERROR(VLOOKUP(B36,DATAOTROS,1,0))=FALSE,VLOOKUP(B36,DATAOTROS,3,0),0) -> 0 | J36: =IF(ISERROR(VLOOKUP(B36,DATAOTROS,1,0))=FALSE,VLOOKUP(B36,DATAOTROS,4,0),0) -> 0 | K36: =IF(ISERROR(VLOOKUP(B36,DATAOTROS,1,0))=FALSE,VLOOKUP(B36,DATAOTROS,5,0),0) -> 0 | L36: =IF(ISERROR(VLOOKUP(B36,DATAOTROS,1,0))=FALSE,VLOOKUP(B36,DATAOTROS,6,0),0) -> 0 | N36: 0 | O36: 0 | Q36: 0 | S36: =IF(ISERROR(VLOOKUP(B36,DATAPERSONAL,1,0))=FALSE,VLOOKUP(B36,DATAPERSONAL,3,0),0) -> 0 | U36: 0 | V36: 0 | X36: 0 | Y36: 0 | Z36: 0
A37: 34 | D37: 0 | E37: 0 | F37: 0 | G37: 0 | H37: 0 | I37: 0 | J37: 0 | K37: 0 | L37: 0 | N37: 0 | O37: 0 | Q37: 0 | S37: 0 | U37: 0 | V37: 0 | X37: 0 | Y37: 0 | Z37: 0
A38: 35 | D38: 0 | E38: 0 | F38: 0 | G38: 0 | H38: 0 | I38: 0 | J38: 0 | K38: 0 | L38: 0 | N38: 0 | O38: 0 | Q38: 0 | S38: 0 | U38: 0 | V38: 0 | X38: 0 | Y38: 0 | Z38: 0
A39: 36 | D39: 0 | E39: 0 | F39: 0 | G39: 0 | H39: 0 | I39: 0 | J39: 0 | K39: 0 | L39: 0 | N39: 0 | O39: 0 | Q39: 0 | S39: 0 | U39: 0 | V39: 0 | X39: 0 | Y39: 0 | Z39: 0
A40: 37 | D40: 0 | E40: 0 | F40: 0 | G40: 0 | H40: 0 | I40: 0 | J40: 0 | K40: 0 | L40: 0 | N40: 0 | O40: 0 | Q40: 0 | S40: 0 | U40: 0 | V40: 0 | X40: 0 | Y40: 0 | Z40: 0
A41: 38 | D41: 0 | E41: 0 | F41: 0 | G41: 0 | H41: 0 | I41: 0 | J41: 0 | K41: 0 | L41: 0 | N41: 0 | O41: 0 | Q41: 0 | S41: 0 | U41: 0 | V41: 0 | X41: 0 | Y41: 0 | Z41: 0
A42: 39 | D42: 0 | E42: 0 | F42: 0 | G42: 0 | H42: 0 | I42: 0 | J42: 0 | K42: 0 | L42: 0 | N42: 0 | O42: 0 | Q42: 0 | S42: 0 | U42: 0 | V42: 0 | X42: 0 | Y42: 0 | Z42: 0
A43: 40 | D43: 0 | E43: 0 | F43: 0 | G43: 0 | H43: 0 | I43: 0 | J43: 0 | K43: 0 | L43: 0 | N43: 0 | O43: 0 | Q43: 0 | S43: 0 | U43: 0 | V43: 0 | X43: 0 | Y43: 0 | Z43: 0
A44: 41 | D44: 0 | E44: 0 | F44: 0 | G44: 0 | H44: 0 | I44: 0 | J44: 0 | K44: 0 | L44: 0 | N44: 0 | O44: 0 | Q44: 0 | S44: 0 | U44: 0 | V44: 0 | X44: 0 | Y44: 0 | Z44: 0
A45: 42 | D45: 0 | E45: 0 | F45: 0 | G45: 0 | H45: 0 | I45: 0 | J45: 0 | K45: 0 | L45: 0 | N45: 0 | O45: 0 | Q45: 0 | S45: 0 | U45: 0 | V45: 0 | X45: 0 | Y45: 0 | Z45: 0
A46: 43 | D46: 0 | E46: 0 | F46: 0 | G46: 0 | H46: 0 | I46: 0 | J46: 0 | K46: 0 | L46: 0 | N46: 0 | O46: 0 | Q46: 0 | S46: 0 | U46: 0 | V46: 0 | X46: 0 | Y46: 0 | Z46: 0
A47: 44 | D47: 0 | E47: 0 | F47: 0 | G47: 0 | H47: 0 | I47: 0 | J47: 0 | K47: 0 | L47: 0 | N47: 0 | O47: 0 | Q47: 0 | S47: 0 | U47: 0 | V47: 0 | X47: 0 | Y47: 0 | Z47: 0
A48: 45 | D48: 0 | E48: 0 | F48: 0 | G48: 0 | H48: 0 | I48: 0 | J48: 0 | K48: 0 | L48: 0 | N48: 0 | O48: 0 | Q48: 0 | S48: 0 | U48: 0 | V48: 0 | X48: 0 | Y48: 0 | Z48: 0
A49: 46 | D49: 0 | E49: 0 | F49: 0 | G49: 0 | H49: 0 | I49: 0 | J49: 0 | K49: 0 | L49: 0 | N49: 0 | O49: 0 | Q49: 0 | S49: 0 | U49: 0 | V49: 0 | X49: 0 | Y49: 0 | Z49: 0
A50: 47 | D50: 0 | E50: 0 | F50: 0 | G50: 0 | H50: 0 | I50: 0 | J50: 0 | K50: 0 | L50: 0 | N50: 0 | O50: 0 | Q50: 0 | S50: 0 | U50: 0 | V50: 0 | X50: 0 | Y50: 0 | Z50: 0
A51: 48 | D51: 0 | E51: 0 | F51: 0 | G51: 0 | H51: 0 | I51: 0 | J51: 0 | K51: 0 | L51: 0 | N51: 0 | O51: 0 | Q51: 0 | S51: 0 | U51: 0 | V51: 0 | X51: 0 | Y51: 0 | Z51: 0
A52: 49 | D52: 0 | E52: 0 | F52: 0 | G52: 0 | H52: 0 | I52: 0 | J52: 0 | K52: 0 | L52: 0 | N52: 0 | O52: 0 | Q52: 0 | S52: 0 | U52: 0 | V52: 0 | X52: 0 | Y52: 0 | Z52: 0
A53: 50 | D53: 0 | E53: 0 | F53: 0 | G53: 0 | H53: 0 | I53: 0 | J53: 0 | K53: 0 | L53: 0 | N53: 0 | O53: 0 | Q53: 0 | S53: 0 | U53: 0 | V53: 0 | X53: 0 | Y53: 0 | Z53: 0
A54: 51 | D54: 0 | E54: 0 | F54: 0 | G54: 0 | H54: 0 | I54: 0 | J54: 0 | K54: 0 | L54: 0 | N54: 0 | O54: 0 | Q54: 0 | S54: 0 | U54: 0 | V54: 0 | X54: 0 | Y54: 0 | Z54: 0
A55: 52 | D55: 0 | E55: 0 | F55: 0 | G55: 0 | H55: 0 | I55: 0 | J55: 0 | K55: 0 | L55: 0 | N55: 0 | O55: 0 | Q55: 0 | S55: 0 | U55: 0 | V55: 0 | X55: 0 | Y55: 0 | Z55: 0
A56: 53 | D56: 0 | E56: 0 | F56: 0 | G56: 0 | H56: 0 | I56: 0 | J56: 0 | K56: 0 | L56: 0 | N56: 0 | O56: 0 | Q56: 0 | S56: 0 | U56: 0 | V56: 0 | X56: 0 | Y56: 0 | Z56: 0
A57: 54 | D57: 0 | E57: 0 | F57: 0 | G57: 0 | H57: 0 | I57: 0 | J57: 0 | K57: 0 | L57: 0 | N57: 0 | O57: 0 | Q57: 0 | S57: 0 | U57: 0 | V57: 0 | X57: 0 | Y57: 0 | Z57: 0
A58: 55 | D58: 0 | E58: 0 | F58: 0 | G58: 0 | H58: 0 | I58: 0 | J58: 0 | K58: 0 | L58: 0 | N58: 0 | O58: 0 | Q58: 0 | S58: 0 | U58: 0 | V58: 0 | X58: 0 | Y58: 0 | Z58: 0
A59: 56 | D59: 0 | E59: 0 | F59: 0 | G59: 0 | H59: 0 | I59: 0 | J59: 0 | K59: 0 | L59: 0 | N59: 0 | O59: 0 | Q59: 0 | S59: 0 | U59: 0 | V59: 0 | X59: 0 | Y59: 0 | Z59: 0
A60: 57 | D60: 0 | E60: 0 | F60: 0 | G60: 0 | H60: 0 | I60: 0 | J60: 0 | K60: 0 | L60: 0 | N60: 0 | O60: 0 | Q60: 0 | S60: 0 | U60: 0 | V60: 0 | X60: 0 | Y60: 0 | Z60: 0
A61: 58 | D61: 0 | E61: 0 | F61: 0 | G61: 0 | H61: 0 | I61: 0 | J61: 0 | K61: 0 | L61: 0 | N61: 0 | O61: 0 | Q61: 0 | S61: 0 | U61: 0 | V61: 0 | X61: 0 | Y61: 0 | Z61: 0
A62: 59 | D62: 0 | E62: 0 | F62: 0 | G62: 0 | H62: 0 | I62: 0 | J62: 0 | K62: 0 | L62: 0 | N62: 0 | O62: 0 | Q62: 0 | S62: 0 | U62: 0 | V62: 0 | X62: 0 | Y62: 0 | Z62: 0
A63: 60 | D63: 0 | E63: 0 | F63: 0 | G63: 0 | H63: 0 | I63: 0 | J63: 0 | K63: 0 | L63: 0 | N63: 0 | O63: 0 | Q63: 0 | S63: 0 | U63: 0 | V63: 0 | X63: 0 | Y63: 0 | Z63: 0
A64: 61 | D64: 0 | E64: 0 | F64: 0 | G64: 0 | H64: 0 | I64: 0 | J64: 0 | K64: 0 | L64: 0 | N64: 0 | O64: 0 | Q64: 0 | S64: 0 | U64: 0 | V64: 0 | X64: 0 | Y64: 0 | Z64: 0
A65: 62 | D65: 0 | E65: 0 | F65: 0 | G65: 0 | H65: 0 | I65: 0 | J65: 0 | K65: 0 | L65: 0 | N65: 0 | O65: 0 | Q65: 0 | S65: 0 | U65: 0 | V65: 0 | X65: 0 | Y65: 0 | Z65: 0
A66: 63 | D66: 0 | E66: 0 | F66: 0 | G66: 0 | H66: 0 | I66: 0 | J66: 0 | K66: 0 | L66: 0 | N66: 0 | O66: 0 | Q66: 0 | S66: 0 | U66: 0 | V66: 0 | X66: 0 | Y66: 0 | Z66: 0
A67: 64 | D67: 0 | E67: 0 | F67: 0 | G67: 0 | H67: 0 | I67: 0 | J67: 0 | K67: 0 | L67: 0 | N67: 0 | O67: 0 | Q67: 0 | S67: 0 | U67: 0 | V67: 0 | X67: 0 | Y67: 0 | Z67: 0
A68: 65 | C68: =IF(ISERROR(VLOOKUP(B68,DATAPERSONAL,1,0))=FALSE,VLOOKUP(B68,DATAPERSONAL,2,0),"") ->  | D68: 0 | E68: =IF(ISERROR(VLOOKUP(B68,DATASUELDO,1,0))=FALSE,VLOOKUP(B68,DATASUELDO,15,0),0) -> 0 | F68: =IF(ISERROR(VLOOKUP(B68,DATAOTROS,1,0))=FALSE,VLOOKUP(B68,DATAOTROS,2,0),0) -> 0 | G68: =IF(ISERROR(VLOOKUP(B68,DATAHORASEXTRAS,1,0))=FALSE,VLOOKUP(B68,DATAHORASEXTRAS,8,0),0) -> 0 | H68: =IF(ISERROR(VLOOKUP(B68,DATACOMISIONES,1,0))=FALSE,VLOOKUP(B68,DATACOMISIONES,14,0),0) -> 0 | I68: =IF(ISERROR(VLOOKUP(B68,DATAOTROS,1,0))=FALSE,VLOOKUP(B68,DATAOTROS,3,0),0) -> 0 | J68: =IF(ISERROR(VLOOKUP(B68,DATAOTROS,1,0))=FALSE,VLOOKUP(B68,DATAOTROS,4,0),0) -> 0 | K68: =IF(ISERROR(VLOOKUP(B68,DATAOTROS,1,0))=FALSE,VLOOKUP(B68,DATAOTROS,5,0),0) -> 0 | L68: =IF(ISERROR(VLOOKUP(B68,DATAOTROS,1,0))=FALSE,VLOOKUP(B68,DATAOTROS,6,0),0) -> 0 | N68: 0 | O68: 0 | Q68: 0 | S68: =IF(ISERROR(VLOOKUP(B68,DATAPERSONAL,1,0))=FALSE,VLOOKUP(B68,DATAPERSONAL,3,0),0) -> 0 | U68: 0 | V68: 0 | X68: 0 | Y68: 0 | Z68: 0
A69: 66 | D69: 0 | E69: 0 | F69: 0 | G69: 0 | H69: 0 | I69: 0 | J69: 0 | K69: 0 | L69: 0 | N69: 0 | O69: =N69/30 -> 0 | Q69: 0 | S69: 0 | U69: 0 | V69: 0 | X69: 0 | Y69: 0 | Z69: 0
A70: 67 | D70: 0 | E70: 0 | F70: 0 | G70: 0 | H70: 0 | I70: 0 | J70: 0 | K70: 0 | L70: 0 | N70: 0 | O70: 0 | Q70: 0 | S70: 0 | U70: 0 | V70: 0 | X70: 0 | Y70: =X70*0.09 -> 0 | Z70: 0
A71: 68 | D71: 0 | E71: 0 | F71: 0 | G71: 0 | H71: 0 | I71: 0 | J71: 0 | K71: 0 | L71: 0 | N71: 0 | O71: 0 | Q71: 0 | S71: 0 | U71: 0 | V71: 0 | X71: 0 | Y71: 0 | Z71: 0
A72: 69 | D72: 0 | E72: 0 | F72: 0 | G72: 0 | H72: 0 | I72: 0 | J72: 0 | K72: 0 | L72: 0 | N72: 0 | O72: 0 | Q72: 0 | S72: 0 | U72: 0 | V72: 0 | X72: 0 | Y72: 0 | Z72: 0
A73: 70 | D73: 0 | E73: 0 | F73: 0 | G73: 0 | H73: 0 | I73: 0 | J73: 0 | K73: 0 | L73: 0 | N73: 0 | O73: 0 | Q73: 0 | S73: 0 | U73: 0 | V73: 0 | X73: 0 | Y73: 0 | Z73: 0
A74: 71 | D74: 0 | E74: 0 | F74: 0 | G74: 0 | H74: 0 | I74: 0 | J74: 0 | K74: 0 | L74: 0 | N74: 0 | O74: 0 | Q74: 0 | S74: 0 | U74: 0 | V74: 0 | X74: 0 | Y74: 0 | Z74: 0
A75: 72 | D75: 0 | E75: 0 | F75: 0 | G75: 0 | H75: 0 | I75: 0 | J75: 0 | K75: 0 | L75: 0 | N75: 0 | O75: 0 | Q75: 0 | S75: 0 | U75: 0 | V75: 0 | X75: 0 | Y75: 0 | Z75: 0
A76: 73 | D76: =SUM(E76:L76) -> 0 | E76: 0 | F76: 0 | G76: 0 | H76: 0 | I76: 0 | J76: 0 | K76: 0 | L76: 0 | N76: =D76/6 -> 0 | O76: 0 | Q76: =IF(ISERROR(IF(AND(MONTH($Q$1)=6,C76>=$Q$2),DAYS360(C76,$Q$1,1)+1,IF(AND(MONTH($Q$1)=12,C76>=$Q$2),DAYS360(C76,$Q$1,1)+1,IF(AND(MONTH($Q$1)=6,C76<$Q$2),DAYS360($Q$2,$Q$1,1)+1,IF(AND(MONTH($Q$1)=12,C76<$Q$2),DAYS360($Q$2,$Q$1,1)+1,0)))))=TRUE,0,IF(AND(MONTH($Q$1)=6,C76>=$Q$2),DAYS360(C76,$Q$1,1)+1,IF(AND(MONTH($Q$1)=12,C76>=$Q$2),DAYS360(C76,$Q$1,1)+1,IF(AND(MONTH($Q$1)=6,C76<$Q$2),DAYS360($Q$2,$Q$1,1)+1,IF(AND(MONTH($Q$1)=12,C76<$Q$2),DAYS360($Q$2,$Q$1,1)+1,0))))) -> 0 | S76: 0 | U76: =INT((Q76-S76)/30) -> 0 | V76: =IF(S76>0,(Q76-S76)-(U76*30),0) -> 0 | X76: =(N76*U76)+(O76*V76) -> 0 | Y76: 0 | Z76: =SUM(X76:Y76) -> 0
A77: 74 | D77: 0 | E77: 0 | F77: 0 | G77: 0 | H77: 0 | I77: 0 | J77: 0 | K77: 0 | L77: 0 | N77: 0 | O77: 0 | Q77: 0 | S77: 0 | U77: 0 | V77: 0 | X77: 0 | Y77: 0 | Z77: 0
A78: 75 | D78: 0 | E78: 0 | F78: 0 | G78: 0 | H78: 0 | I78: 0 | J78: 0 | K78: 0 | L78: 0 | N78: 0 | O78: 0 | Q78: 0 | S78: 0 | U78: 0 | V78: 0 | X78: 0 | Y78: 0 | Z78: 0
A79: 76 | D79: 0 | E79: 0 | F79: 0 | G79: 0 | H79: 0 | I79: 0 | J79: 0 | K79: 0 | L79: 0 | N79: 0 | O79: 0 | Q79: 0 | S79: 0 | U79: 0 | V79: 0 | X79: 0 | Y79: 0 | Z79: 0
A80: 77 | D80: 0 | E80: 0 | F80: 0 | G80: 0 | H80: 0 | I80: 0 | J80: 0 | K80: 0 | L80: 0 | N80: 0 | O80: 0 | Q80: 0 | S80: 0 | U80: 0 | V80: 0 | X80: 0 | Y80: 0 | Z80: 0
A81: 78 | D81: 0 | E81: 0 | F81: 0 | G81: 0 | H81: 0 | I81: 0 | J81: 0 | K81: 0 | L81: 0 | N81: 0 | O81: 0 | Q81: 0 | S81: 0 | U81: 0 | V81: 0 | X81: 0 | Y81: 0 | Z81: 0
A82: 79 | D82: 0 | E82: 0 | F82: 0 | G82: 0 | H82: 0 | I82: 0 | J82: 0 | K82: 0 | L82: 0 | N82: 0 | O82: 0 | Q82: 0 | S82: 0 | U82: 0 | V82: 0 | X82: 0 | Y82: 0 | Z82: 0
A83: 80 | D83: 0 | E83: 0 | F83: 0 | G83: 0 | H83: 0 | I83: 0 | J83: 0 | K83: 0 | L83: 0 | N83: 0 | O83: 0 | Q83: 0 | S83: 0 | U83: 0 | V83: 0 | X83: 0 | Y83: 0 | Z83: 0
A84: 81 | D84: 0 | E84: 0 | F84: 0 | G84: 0 | H84: 0 | I84: 0 | J84: 0 | K84: 0 | L84: 0 | N84: 0 | O84: 0 | Q84: 0 | S84: 0 | U84: 0 | V84: 0 | X84: 0 | Y84: 0 | Z84: 0
A85: 82 | D85: 0 | E85: 0 | F85: 0 | G85: 0 | H85: 0 | I85: 0 | J85: 0 | K85: 0 | L85: 0 | N85: 0 | O85: 0 | Q85: 0 | S85: 0 | U85: 0 | V85: 0 | X85: 0 | Y85: 0 | Z85: 0
A86: 83 | D86: 0 | E86: 0 | F86: 0 | G86: 0 | H86: 0 | I86: 0 | J86: 0 | K86: 0 | L86: 0 | N86: 0 | O86: 0 | Q86: 0 | S86: 0 | U86: 0 | V86: 0 | X86: 0 | Y86: 0 | Z86: 0
A87: 84 | D87: 0 | E87: 0 | F87: 0 | G87: 0 | H87: 0 | I87: 0 | J87: 0 | K87: 0 | L87: 0 | N87: 0 | O87: 0 | Q87: 0 | S87: 0 | U87: 0 | V87: 0 | X87: 0 | Y87: 0 | Z87: 0
A88: 85 | D88: 0 | E88: 0 | F88: 0 | G88: 0 | H88: 0 | I88: 0 | J88: 0 | K88: 0 | L88: 0 | N88: 0 | O88: 0 | Q88: 0 | S88: 0 | U88: 0 | V88: 0 | X88: 0 | Y88: 0 | Z88: 0
A89: 86 | D89: 0 | E89: 0 | F89: 0 | G89: 0 | H89: 0 | I89: 0 | J89: 0 | K89: 0 | L89: 0 | N89: 0 | O89: 0 | Q89: 0 | S89: 0 | U89: 0 | V89: 0 | X89: 0 | Y89: 0 | Z89: 0
A90: 87 | D90: 0 | E90: 0 | F90: 0 | G90: 0 | H90: 0 | I90: 0 | J90: 0 | K90: 0 | L90: 0 | N90: 0 | O90: 0 | Q90: 0 | S90: 0 | U90: 0 | V90: 0 | X90: 0 | Y90: 0 | Z90: 0
A91: 88 | D91: 0 | E91: 0 | F91: 0 | G91: 0 | H91: 0 | I91: 0 | J91: 0 | K91: 0 | L91: 0 | N91: 0 | O91: 0 | Q91: 0 | S91: 0 | U91: 0 | V91: 0 | X91: 0 | Y91: 0 | Z91: 0
A92: 89 | D92: 0 | E92: 0 | F92: 0 | G92: 0 | H92: 0 | I92: 0 | J92: 0 | K92: 0 | L92: 0 | N92: 0 | O92: 0 | Q92: 0 | S92: 0 | U92: 0 | V92: 0 | X92: 0 | Y92: 0 | Z92: 0
A93: 90 | D93: 0 | E93: 0 | F93: 0 | G93: 0 | H93: 0 | I93: 0 | J93: 0 | K93: 0 | L93: 0 | N93: 0 | O93: 0 | Q93: 0 | S93: 0 | U93: 0 | V93: 0 | X93: 0 | Y93: 0 | Z93: 0
A94: 91 | D94: 0 | E94: 0 | F94: 0 | G94: 0 | H94: 0 | I94: 0 | J94: 0 | K94: 0 | L94: 0 | N94: 0 | O94: 0 | Q94: 0 | S94: 0 | U94: 0 | V94: 0 | X94: 0 | Y94: 0 | Z94: 0
A95: 92 | D95: 0 | E95: 0 | F95: 0 | G95: 0 | H95: 0 | I95: 0 | J95: 0 | K95: 0 | L95: 0 | N95: 0 | O95: 0 | Q95: 0 | S95: 0 | U95: 0 | V95: 0 | X95: 0 | Y95: 0 | Z95: 0
A96: 93 | D96: 0 | E96: 0 | F96: 0 | G96: 0 | H96: 0 | I96: 0 | J96: 0 | K96: 0 | L96: 0 | N96: 0 | O96: 0 | Q96: 0 | S96: 0 | U96: 0 | V96: 0 | X96: 0 | Y96: 0 | Z96: 0
A97: 94 | D97: 0 | E97: 0 | F97: 0 | G97: 0 | H97: 0 | I97: 0 | J97: 0 | K97: 0 | L97: 0 | N97: 0 | O97: 0 | Q97: 0 | S97: 0 | U97: 0 | V97: 0 | X97: 0 | Y97: 0 | Z97: 0
A98: 95 | D98: 0 | E98: 0 | F98: 0 | G98: 0 | H98: 0 | I98: 0 | J98: 0 | K98: 0 | L98: 0 | N98: 0 | O98: 0 | Q98: 0 | S98: 0 | U98: 0 | V98: 0 | X98: 0 | Y98: 0 | Z98: 0
A99: 96 | D99: 0 | E99: 0 | F99: 0 | G99: 0 | H99: 0 | I99: 0 | J99: 0 | K99: 0 | L99: 0 | N99: 0 | O99: 0 | Q99: 0 | S99: 0 | U99: 0 | V99: 0 | X99: 0 | Y99: 0 | Z99: 0
A100: 97 | C100: =IF(ISERROR(VLOOKUP(B100,DATAPERSONAL,1,0))=FALSE,VLOOKUP(B100,DATAPERSONAL,2,0),"") ->  | D100: 0 | E100: 0 | F100: 0 | G100: 0 | H100: 0 | I100: 0 | J100: 0 | K100: 0 | L100: 0 | N100: 0 | O100: 0 | Q100: 0 | S100: 0 | U100: 0 | V100: 0 | X100: 0 | Y100: 0 | Z100: 0
A101: 98 | D101: 0 | E101: 0 | F101: 0 | G101: 0 | H101: 0 | I101: 0 | J101: 0 | K101: 0 | L101: 0 | N101: 0 | O101: 0 | Q101: 0 | S101: 0 | U101: 0 | V101: 0 | X101: 0 | Y101: 0 | Z101: 0
A102: 99 | D102: 0 | E102: 0 | F102: 0 | G102: 0 | H102: 0 | I102: 0 | J102: 0 | K102: 0 | L102: 0 | N102: 0 | O102: 0 | Q102: 0 | S102: 0 | U102: 0 | V102: 0 | X102: 0 | Y102: 0 | Z102: 0
A103: 100 | D103: 0 | E103: 0 | F103: 0 | G103: 0 | H103: 0 | I103: 0 | J103: 0 | K103: 0 | L103: 0 | N103: 0 | O103: 0 | Q103: 0 | S103: 0 | U103: 0 | V103: 0 | X103: 0 | Y103: 0 | Z103: 0
